fUST/lending_fUST_20240714
["ID","MTS","AMOUNT","RATE_DAILY","PERIOD"]
[332116164,1720971049669,-151.0,0.00025205,7]
[332116165,1720971049678,-151.0,0.00025205,7]
[332116166,1720971049688,-151.0,0.00025205,7]
[332116167,1720971049698,-291.273172,0.00025205,7]
[332116168,1720971049707,-500.0,0.00025205,2]
[332116169,1720971049717,-414.611711,0.00025205,7]
[332116170,1720971049727,-414.611711,0.00025205,7]
[332116171,1720971049737,-500.0,0.00025205,2]
[332116172,1720971049747,-500.0,0.00025205,2]
[332116173,1720971049756,-414.611711,0.00025205,7]
[332116174,1720971049765,-500.0,0.00025205,2]
[332116175,1720971049775,-414.611711,0.00025205,7]
[332116176,1720971049784,-500.0,0.00025205,2]
[332116177,1720971049793,-9139.95,0.00025205,2]
[332116178,1720971049803,-500.0,0.00025205,2]
[332116179,1720971049815,-500.0,0.00025205,2]
[332116180,1720971049826,-159.814515,0.00025205,7]
[332116181,1720971049837,-159.814515,0.00025205,7]
[332116182,1720971049848,-500.0,0.00025205,2]
[332116183,1720971049858,-500.0,0.00025205,2]
[332116184,1720971049868,-159.814515,0.00025205,7]
[332116185,1720971049877,-159.814515,0.00025205,7]
[332116186,1720971049887,-500.0,0.00025205,2]
[332116187,1720971049897,-500.0,0.00025205,2]
[332116188,1720971049908,-500.0,0.00025205,2]
[332116189,1720971049917,-591.01622074,0.00025205,2]
[332116190,1720971049927,-500.0,0.00025205,2]
[332116191,1720971049937,-500.0,0.00025205,2]
[332116192,1720971049946,-500.0,0.00025205,2]
[332116193,1720971049956,-500.0,0.00025205,2]
[332116194,1720971049965,-500.0,0.00025205,2]
[332116195,1720971049977,-500.0,0.00025205,2]
[332116196,1720971049989,-396.334534,0.00025205,7]
[332116197,1720971050004,-500.0,0.00025205,2]
[332116198,1720971050015,-396.334534,0.00025205,7]
[332116199,1720971050025,-500.0,0.00025205,2]
[332116200,1720971050035,-500.0,0.00025205,2]
[332116201,1720971050046,-396.334534,0.00025205,7]
[332116202,1720971050056,-396.334534,0.00025205,7]
[332116203,1720971050067,-500.0,0.00025205,2]
[332116204,1720971050077,-151.0,0.00025205,7]
[332116205,1720971050087,-151.0,0.00025205,7]
[332116206,1720971050097,-500.0,0.00025205,2]
[332116207,1720971050108,-500.0,0.00025205,2]
[332116208,1720971050118,-500.0,0.00025205,2]
[332116209,1720971050127,-500.0,0.00025205,2]
[332116210,1720971050137,-225.455759,0.00025205,7]
[332116211,1720971050146,-225.455759,0.00025205,7]
[332116212,1720971050157,-500.0,0.00025205,2]
[332116213,1720971050167,-500.0,0.00025205,2]
[332116214,1720971050177,-225.455759,0.00025205,7]
[332116215,1720971050187,-225.455752,0.00025205,7]
[332116216,1720971050196,-500.0,0.00025205,2]
[332116217,1720971050206,-500.0,0.00025205,2]
[332116218,1720971050216,-500.0,0.00025205,2]
[332116219,1720971050226,-500.0,0.00025205,2]
[332116220,1720971050236,-500.0,0.00025205,2]
[332116221,1720971050246,-500.0,0.00025205,2]
[332116222,1720971050255,-500.0,0.00025205,2]
[332116223,1720971050264,-500.0,0.00025205,2]
[332116224,1720971050275,-500.0,0.00025205,2]
[332116225,1720971050285,-500.0,0.00025205,2]
[332116226,1720971050294,-500.0,0.00025205,2]
[332116227,1720971050304,-500.0,0.00025205,2]
[332116228,1720971050315,-500.0,0.00025205,2]
[332116229,1720971050324,-412.74350356,0.00025205,2]
[332116230,1720971050334,-500.0,0.00025205,2]
[332116231,1720971050343,-500.0,0.00025205,2]
[332116232,1720971050353,-500.0,0.00025205,2]
[332116233,1720971050363,-500.0,0.00025205,2]
[332116234,1720971050373,-500.0,0.00025205,2]
[332116235,1720971050383,-500.0,0.00025205,2]
[332116236,1720971050393,-1510.35,0.00025205,2]
[332116237,1720971050402,-189.4315508,0.0002525,2]
[332116238,1720971050411,-150.112233,0.000253,7]
[332116239,1720971050421,-150.112233,0.000254,6]
[332116240,1720971050431,-542.48,0.00025424,2]
[332116241,1720971050440,-11826.2108062,0.00025469,3]
[332116242,1720971050449,-151.0,0.00025478,7]
[332116243,1720971050459,-500.0,0.00025478,2]
[332116244,1720971050468,-500.0,0.00025478,2]
[332116245,1720971050478,-542.48,0.00025478,2]
[332116246,1720971050488,-500.0,0.00025479,2]
[332116247,1720971050497,-1500.0,0.00025479,2]
[332116248,1720971050507,-566.35,0.00025479,2]
[332116249,1720971050516,-561.99584421,0.00025479,3]
[332116250,1720971050526,-737.25,0.00025479,2]
[332116251,1720971050535,-500.0,0.00025479,2]
[332116252,1720971050544,-500.0,0.00025479,2]
[332116253,1720971050555,-312.71230314,0.00025479,2]
[332116254,1720971050639,-151.0,0.00024657,7]
[332116255,1720971050650,-151.0,0.00024657,7]
[332116256,1720971050662,-500.0,0.00024657,2]
[332116257,1720971050672,-151.0,0.0002493,7]
[332116258,1720971050682,-500.0,0.00024931,2]
[332116259,1720971050692,-151.0,0.00024931,7]
[332116260,1720971050702,-500.0,0.00025205,2]
[332116261,1720971050711,-187.28769686,0.00025479,2]
[332116262,1720971050720,-500.0,0.00025479,2]
[332116263,1720971050730,-151.0,0.00025479,7]
[332116264,1720971050740,-535.06,0.00025479,2]
[332116265,1720971050751,-500.0,0.00025479,2]
[332116266,1720971050760,-500.0,0.00025479,2]
[332116267,1720971050768,-500.0,0.00025479,2]
[332116268,1720971050777,-500.0,0.00025479,2]
[332116269,1720971050787,-819.36,0.00025479,2]
[332116270,1720971050796,-500.0,0.00025479,2]
[332116271,1720971050805,-500.0,0.00025479,2]
[332116272,1720971050814,-500.0,0.00025479,2]
[332116273,1720971050823,-500.0,0.00025479,2]
[332116274,1720971050832,-500.0,0.00025479,2]
[332116275,1720971050842,-500.0,0.00025479,2]
[332116276,1720971050851,-500.0,0.00025479,2]
[332116277,1720971050860,-518.26751006,0.00025479,2]
[332116278,1720971050869,-500.0,0.00025479,2]
[332116279,1720971050878,-500.0,0.00025479,2]
[332116280,1720971050888,-500.0,0.00025479,2]
[332116281,1720971050897,-500.0,0.00025479,4]
[332116282,1720971050906,-500.0,0.00025479,2]
[332116283,1720971050916,-500.0,0.00025479,2]
[332116284,1720971050925,-325.93657108,0.00025479,2]
[332116285,1720971050935,-500.0,0.00025479,2]
[332116286,1720971050944,-500.0,0.00025479,2]
[332116287,1720971050953,-646.42797551,0.00025479,2]
[332116288,1720971050963,-500.0,0.00025479,2]
[332116289,1720971050972,-500.0,0.00025479,2]
[332116290,1720971050982,-500.0,0.00025479,2]
[332116291,1720971050996,-447.71325234,0.00025479,2]
[332116292,1720971051009,-500.0,0.00025479,2]
[332116293,1720971051084,-500.0,0.00025479,2]
[332116294,1720971051094,-869.84,0.00025479,2]
[332116295,1720971051104,-500.0,0.00025479,2]
[332116296,1720971051113,-500.0,0.00025479,2]
[332116297,1720971051123,-505.97,0.00025479,2]
[332116298,1720971051133,-4556.4,0.00025479,2]
[332116299,1720971051142,-500.0,0.00025479,2]
[332116300,1720971051151,-500.0,0.00025479,2]
[332116301,1720971051162,-500.0,0.00025479,2]
[332116302,1720971051171,-500.0,0.00025479,2]
[332116303,1720971051180,-500.0,0.00025479,2]
[332116304,1720971051190,-500.0,0.00025479,2]
[332116305,1720971051200,-500.0,0.00025479,2]
[332116306,1720971051209,-500.0,0.00025479,2]
[332116307,1720971051218,-500.0,0.00025479,2]
[332116308,1720971051227,-500.0,0.00025479,2]
[332116309,1720971051237,-500.0,0.00025479,2]
[332116310,1720971051246,-500.0,0.00025479,2]
[332116311,1720971051256,-500.0,0.00025479,2]
[332116312,1720971051265,-500.0,0.00025479,2]
[332116313,1720971051275,-500.0,0.00025479,2]
[332116314,1720971051284,-500.0,0.00025479,2]
[332116315,1720971051295,-591.63205234,0.00025479,2]
[332116316,1720971051308,-209.68238,0.00025479,7]
[332116317,1720971051319,-209.682389,0.00025479,7]
[332116318,1720971051331,-226.506848,0.00025479,7]
[332116319,1720971051343,-500.0,0.00025479,2]
[332116320,1720971051354,-500.0,0.00025479,2]
[332116321,1720971051364,-505.7,0.00025479,2]
[332116322,1720971051373,-1108.7,0.00025479,2]
[332116323,1720971051383,-500.0,0.00025479,2]
[332116324,1720971051393,-500.0,0.00025479,2]
[332116325,1720971051402,-500.0,0.00025479,2]
[332116326,1720971051413,-500.0,0.00025479,2]
[332116327,1720971051422,-500.0,0.00025479,2]
[332116328,1720971051431,-318.559191,0.00025479,7]
[332116329,1720971051440,-318.5592,0.00025479,7]
[332116330,1720971051450,-500.0,0.00025479,2]
[332116331,1720971051459,-500.0,0.00025479,2]
[332116332,1720971051468,-151.0,0.00025479,7]
[332116333,1720971051479,-500.0,0.00025479,2]
[332116334,1720971051488,-414.611711,0.00025479,7]
[332116335,1720971051498,-500.0,0.00025479,2]
[332116336,1720971051508,-500.0,0.00025479,2]
[332116337,1720971051517,-500.0,0.00025479,2]
[332116338,1720971051526,-414.611715,0.00025479,7]
[332116339,1720971051536,-522.29616203,0.00025479,2]
[332116340,1720971051545,-5742.53907561,0.00025479,2]
[332116341,1720971228322,9621.97492075,0.00014998,2]
[332116342,1720971239584,412.59810264,0.00014999,2]
[332116343,1720971242498,2400.39571371,0.00014999,2]
[332116344,1720971242963,5505.20654968,0.00014998,2]
[332116345,1720971247770,11078.18304274,0.00014998,2]
[332116346,1720971264606,1491.05500079,0.00014999,2]
[332116347,1720971279846,183.26650708,0.00014999,2]
[332116348,1720971291512,154.69831054,0.00014999,2]
[332116349,1720971306466,3777.63299636,0.00014999,2]
[332116350,1720971311437,155.05188196,0.00014999,2]
[332116351,1720971311859,1623.73351642,0.00014999,2]
[332116352,1720971324907,283.37630814,0.00014999,2]
[332116353,1720971414460,1623.73351642,0.00014999,2]
[332116354,1720971416487,3777.63299636,0.00014999,2]
[332116355,1720971424500,622.116331,0.00014999,2]
[332116356,1720971434005,2244.61794428,0.00014999,2]
[332116357,1720971464990,5508.34064728,0.00014998,2]
[332116362,1720971483946,2348.87261435,0.00015,2]
[332116363,1720971486728,678.8359822,0.00014999,2]
[332116364,1720971516367,493.56545895,0.00014999,2]
[332116365,1720971516395,1130.16805747,0.00014999,2]
[332116366,1720971528464,3020.609984,0.00014999,2]
[332116367,1720971602912,993.01891561,0.00014999,2]
[332116368,1720971622400,1623.73351642,0.00014999,2]
[332116369,1720971624478,5502.07245208,0.00014998,2]
[332116370,1720971636570,197.89340075,0.00014999,2]
[332116371,1720971643731,207.84,0.00014999,2]
[332116372,1720971660263,154.55950541,0.00014999,2]
[332116373,1720971675749,156.70609989,0.00014999,2]
[332116374,1720971676604,154.55950541,0.00014999,2]
[332116375,1720971679828,250.0,0.00015211,2]
[332116376,1720971681279,155.97882791,0.00014999,2]
[332116377,1720971700856,24900.0,0.00015211,2]
[332116378,1720971702339,8950.11889718,0.00014998,2]
[332116379,1720971711963,154.93166857,0.00014999,2]
[332116380,1720971718362,1623.73351642,0.00014999,2]
[332116381,1720971725060,222.83479055,0.00014999,2]
[332116382,1720971740586,200.0,0.000157,2]
[332116383,1720971741257,159.566343,0.00015325,2]
[332116384,1720971741467,159.566343,0.00015378,2]
[332116385,1720971741889,159.566343,0.00015431,2]
[332116386,1720971742101,159.566343,0.00015484,2]
[332116387,1720971742333,159.566343,0.00015538,2]
[332116388,1720971742532,159.566343,0.00015591,2]
[332116389,1720971742729,159.566343,0.00015644,2]
[332116390,1720971742965,159.566343,0.00015697,2]
[332116391,1720971756050,641.148592,0.00014999,2]
[332116392,1720971757898,391.80627157,0.00014999,2]
[332116393,1720971765624,156.4037428,0.00014999,2]
[332116394,1720971769081,1412.12724804,0.00014999,2]
[332116395,1720971781230,1436.140007,0.00014999,2]
[332116396,1720971800209,201.176517,0.00015039,2]
[332116397,1720971803660,621.90850696,0.00014999,2]
[332116398,1720971806369,1623.73351642,0.00014999,2]
[332116399,1720971809529,5505.20654968,0.00014998,2]
[332116400,1720971834675,412.59810264,0.00014999,2]
[332116401,1720971835101,1636.73683547,0.00014999,2]
[332116402,1720971865900,993.30712187,0.00014999,2]
[332116403,1720971879804,1988.50300609,0.00014999,2]
[332116404,1720971892376,1623.73351642,0.00014998,2]
[332116405,1720971932239,-240.2798308,0.00015742,2]
[332116406,1720971954093,425.41247873,0.00014999,2]
[332116407,1720971977765,979.69908413,0.00014999,2]
[332116408,1720971978178,525.73842429,0.00014999,2]
[332116409,1720971986579,4252.79727707,0.00014999,2]
[332116410,1720972018237,871.80072758,0.00014999,2]
[332116411,1720972030084,-925.74310432,0.00015742,2]
[332116412,1720972030366,1500.0,0.00014999,2]
[332116413,1720972032305,601.1953179,0.00014999,2]
[332116414,1720972036669,1623.73351642,0.00014999,2]
[332116415,1720972039174,-250.0,0.00015742,2]
[332116416,1720972042133,-1583.97706488,0.00015742,2]
[332116417,1720972042154,-287.42129962,0.00015742,2]
[332116418,1720972042175,-1610.54475976,0.00015742,2]
[332116419,1720972043102,1636.73683547,0.00014999,2]
[332116420,1720972043934,160.45948887,0.00014999,2]
[332116421,1720972045938,993.30712187,0.00014999,2]
[332116422,1720972048083,-13.18875666,0.00015742,2]
[332116423,1720972048104,-159.566343,0.0001575,2]
[332116424,1720972048125,-159.566343,0.00015804,2]
[332116425,1720972048146,-159.566343,0.00015857,2]
[332116426,1720972048167,-159.566343,0.0001591,2]
[332116427,1720972048188,-159.566343,0.00015963,2]
[332116428,1720972048209,-3.14866937,0.00015995,2]
[332116429,1720972049095,-627.6806118,0.00015995,2]
[332116430,1720972049117,-159.566343,0.00016017,2]
[332116431,1720972049138,-159.566343,0.0001607,2]
[332116432,1720972049159,-159.566343,0.00016123,2]
[332116433,1720972049180,-300.0,0.00016177,2]
[332116434,1720972049201,-1454.58721133,0.00016178,2]
[332116435,1720972050096,-268.12819717,0.00016178,2]
[332116436,1720972050120,-652.11142565,0.00016255,2]
[332116437,1720972050776,725.82934439,0.00014999,2]
[332116438,1720972053812,1988.50300609,0.00014999,2]
[332116439,1720972055018,456.75949662,0.00014999,2]
[332116440,1720972059500,526.36205563,0.00014999,2]
[332116441,1720972074510,526.36205563,0.00014999,2]
[332116442,1720972084564,6986.6266304,0.00014998,2]
[332116443,1720972143410,1623.73351642,0.00014998,2]
[332116444,1720972145088,-1026.22451187,0.0001612,2]
[332116445,1720972146078,-902.02127173,0.0001612,2]
[332116446,1720972146099,-797.85050203,0.00016155,2]
[332116447,1720972150119,-276.956922,0.00015786,2]
[332116448,1720972150141,-224.67424245,0.00016155,2]
[332116449,1720972158660,403.37885226,0.00014999,2]
[332116450,1720972159110,-161.22927954,0.00016155,2]
[332116451,1720972159132,-300.0,0.00016254,2]
[332116452,1720972159153,-300.0,0.00016254,2]
[332116453,1720972159178,-35005.02361539,0.00016255,2]
[332116454,1720972159199,-13895.68848638,0.00016255,2]
[332116455,1720972159221,-235.31556196,0.00016255,4]
[332116456,1720972163113,-2895.52266671,0.00016255,4]
[332116457,1720972163134,-819.59002386,0.00016255,2]
[332116458,1720972163156,-420.0,0.00017766,2]
[332116459,1720972163176,-420.0,0.00017879,2]
[332116460,1720972163197,-16715.62535652,0.00018,2]
[332116461,1720972163220,-500.0,0.00018179,2]
[332116462,1720972163241,-366.56831293,0.00018179,2]
[332116463,1720972163263,-207.61214862,0.00018179,2]
[332116464,1720972163284,-195.32850403,0.00018179,2]
[332116465,1720972163308,-244.57729607,0.0001818,2]
[332116466,1720972163331,-1183.75402402,0.00018833,2]
[332116467,1720972163355,-36.23004025,0.000189,2]
[332116468,1720972166095,-439.22975949,0.000189,2]
[332116469,1720972166115,-197.47648542,0.00019,2]
[332116470,1720972166223,-250.0,0.00019041,2]
[332116471,1720972166244,-167.826286,0.00019178,2]
[332116472,1720972205644,246.56700087,0.0001602,2]
[332116473,1720972205666,5.98792689,0.0001602,2]
[332116497,1720972232174,-1623.73351642,0.00016255,2]
[332116499,1720972232183,-887.84995129,0.00018,2]
[332116501,1720972232193,-197.90562726,0.00019703,2]
[332116503,1720972232203,-25704.82470136,0.00019703,2]
[332116505,1720972232212,-159.76779207,0.00019703,2]
[332116507,1720972232222,-300.0,0.00019999,2]
[332116509,1720972232231,-246.99653091,0.0002,2]
[332116511,1720972232242,-293.73911192,0.0002,2]
[332116513,1720972232251,-287.81561084,0.0002,2]
[332116515,1720972232260,-1224.60469054,0.0002,2]
[332116517,1720972232270,-209.52877542,0.0002,2]
[332116519,1720972232279,-309.08818984,0.0002,2]
[332116522,1720972232289,-750.0,0.00021096,2]
[332116525,1720972232298,-310.298609,0.00021096,2]
[332116528,1720972232307,-266.0,0.00021999,2]
[332116530,1720972232317,-201.176517,0.00022558,2]
[332116532,1720972232326,-475.45979974,0.000239,2]
[332116534,1720972232335,-1107.70603902,0.00023961,2]
[332116536,1720972232345,-2129.82907992,0.0002448,2]
[332116538,1720972232358,-814.17379785,0.00024481,5]
[332116540,1720972232368,-150.112233,0.000246,4]
[332116542,1720972232377,-21915.1449441,0.00024637,3]
[332116544,1720972232387,-165.22,0.00024637,3]
[332116546,1720972232398,-256.59781905,0.00024646,2]
[332116548,1720972232406,-436.72995282,0.00024646,2]
[332116550,1720972232416,-59575.69671063,0.00024647,3]
[332116711,1720972238176,-6169.73812157,0.00024647,3]
[332116713,1720972238186,-500.0,0.00024657,2]
[332116715,1720972238195,-500.0,0.00024657,2]
[332116717,1720972238205,-500.0,0.00024657,2]
[332116719,1720972238214,-500.0,0.00024657,2]
[332116721,1720972238224,-500.0,0.00024657,2]
[332116723,1720972238234,-500.0,0.00024657,2]
[332116725,1720972238243,-500.0,0.00024657,2]
[332116727,1720972238253,-500.0,0.00024657,2]
[332116728,1720972238262,-500.0,0.00024657,2]
[332116729,1720972238271,-500.0,0.00024657,2]
[332116730,1720972238281,-500.0,0.00024657,2]
[332116732,1720972238290,-602.08218057,0.00024657,2]
[332116734,1720972238299,-500.0,0.00024657,2]
[332116736,1720972238309,-500.0,0.00024657,2]
[332116738,1720972238318,-500.0,0.00024657,2]
[332116740,1720972238328,-500.0,0.00024657,2]
[332116742,1720972238337,-500.0,0.00024657,2]
[332116744,1720972238346,-500.0,0.00024657,2]
[332116746,1720972238359,-502.04077763,0.00024657,2]
[332116748,1720972238369,-631.67216182,0.00024657,2]
[332116751,1720972238379,-500.0,0.00024657,2]
[332116755,1720972238388,-502.64858833,0.00024657,2]
[332116758,1720972238399,-500.0,0.00024657,2]
[332116761,1720972238408,-286.49385376,0.00024657,2]
[332116763,1720972238418,-500.0,0.00024657,2]
[332116765,1720972238429,-500.0,0.00024657,2]
[332116767,1720972238438,-500.0,0.00024657,2]
[332116769,1720972238447,-500.0,0.00024657,2]
[332116771,1720972238456,-500.0,0.00024657,2]
[332116773,1720972238465,-500.0,0.00024657,2]
[332116775,1720972238474,-500.0,0.00024657,2]
[332116777,1720972238483,-500.0,0.00024657,2]
[332116779,1720972238492,-500.0,0.00024657,2]
[332116780,1720972238502,-500.0,0.00024657,2]
[332116782,1720972238511,-500.0,0.00024657,2]
[332116784,1720972238520,-500.0,0.00024657,2]
[332116787,1720972238529,-500.0,0.00024657,2]
[332116788,1720972238538,-500.0,0.00024657,2]
[332116790,1720972238547,-500.0,0.00024657,2]
[332116792,1720972238556,-500.0,0.00024657,2]
[332116794,1720972238565,-500.0,0.00024657,2]
[332116796,1720972238574,-328.42450067,0.00024657,2]
[332116798,1720972238583,-500.0,0.00024657,2]
[332116800,1720972238593,-500.0,0.00024657,2]
[332116802,1720972238603,-500.0,0.00024657,2]
[332116804,1720972238612,-534.26869041,0.00024657,2]
[332116806,1720972238621,-500.0,0.00024657,2]
[332116808,1720972238630,-500.0,0.00024657,2]
[332116810,1720972238639,-500.0,0.00024657,2]
[332116812,1720972238650,-500.0,0.00024657,2]
[332116814,1720972238660,-500.0,0.00024657,2]
[332116816,1720972238669,-500.0,0.00024657,2]
[332116818,1720972238681,-500.0,0.00024657,2]
[332116820,1720972238690,-500.0,0.00024657,2]
[332116822,1720972238699,-500.0,0.00024657,2]
[332116824,1720972238708,-500.0,0.00024657,2]
[332116826,1720972238718,-500.0,0.00024657,2]
[332116828,1720972238729,-503.12251877,0.00024657,2]
[332116831,1720972238740,-500.0,0.00024657,2]
[332116833,1720972238751,-500.0,0.00024657,2]
[332116835,1720972238763,-507.62364398,0.00024657,2]
[332116837,1720972238773,-500.0,0.00024657,2]
[332116839,1720972238783,-481.81069992,0.00024657,2]
[332116841,1720972238792,-500.0,0.00024657,2]
[332116843,1720972238801,-500.0,0.00024657,2]
[332116845,1720972238811,-500.0,0.00024657,2]
[332116847,1720972238820,-500.0,0.00024657,2]
[332116849,1720972238829,-500.0,0.00024657,2]
[332116851,1720972238838,-500.0,0.00024657,2]
[332116853,1720972238847,-500.0,0.00024657,2]
[332116855,1720972238856,-500.0,0.00024657,2]
[332116857,1720972238866,-514.61397697,0.00024657,2]
[332116859,1720972238875,-500.0,0.00024657,2]
[332116861,1720972238884,-500.0,0.00024657,2]
[332116863,1720972238895,-500.0,0.00024657,2]
[332116865,1720972238904,-504.62117378,0.00024657,2]
[332116867,1720972238913,-500.0,0.00024657,2]
[332116870,1720972238922,-500.0,0.00024657,2]
[332116872,1720972238931,-500.0,0.00024657,2]
[332116874,1720972238942,-500.0,0.00024657,2]
[332116876,1720972238951,-287.558,0.00024657,2]
[332116878,1720972238960,-500.0,0.00024657,2]
[332116880,1720972238970,-502.01693966,0.00024657,2]
[332116882,1720972238979,-500.0,0.00024657,2]
[332116884,1720972238988,-500.0,0.00024657,2]
[332116886,1720972238998,-500.0,0.00024657,2]
[332116888,1720972239007,-469.83126249,0.00024657,2]
[332116890,1720972239016,-500.0,0.00024657,2]
[332116892,1720972239025,-500.0,0.00024657,2]
[332116894,1720972239035,-200.5132499,0.00024657,2]
[332116896,1720972239044,-500.0,0.00024657,2]
[332116898,1720972239053,-500.0,0.00024657,2]
[332116900,1720972239063,-500.0,0.00024657,2]
[332116902,1720972239072,-500.0,0.00024657,2]
[332116903,1720972239081,-500.0,0.00024657,2]
[332116905,1720972239091,-500.0,0.00024657,2]
[332116907,1720972239100,-500.0,0.00024657,2]
[332116909,1720972239110,-506.58955093,0.00024657,2]
[332116912,1720972239120,-500.0,0.00024657,2]
[332116914,1720972239130,-500.0,0.00024657,2]
[332116916,1720972239139,-500.0,0.00024657,2]
[332116917,1720972239149,-500.0,0.00024657,2]
[332116920,1720972239159,-500.0,0.00024657,2]
[332116922,1720972239168,-500.0,0.00024657,2]
[332116924,1720972239177,-500.0,0.00024657,2]
[332116925,1720972239187,-500.0,0.00024657,2]
[332116927,1720972239196,-500.0,0.00024657,2]
[332116928,1720972239205,-500.0,0.00024657,2]
[332116929,1720972239214,-500.0,0.00024657,2]
[332116931,1720972239223,-500.0,0.00024657,2]
[332116933,1720972239233,-500.0,0.00024657,2]
[332116936,1720972239242,-500.0,0.00024657,2]
[332116938,1720972239251,-500.0,0.00024657,2]
[332116939,1720972239261,-500.0,0.00024657,4]
[332116940,1720972239270,-500.0,0.00024657,2]
[332116941,1720972239279,-500.0,0.00024657,2]
[332116942,1720972239288,-584.67320022,0.00024657,2]
[332116943,1720972239297,-500.0,0.00024657,2]
[332116944,1720972239307,-500.0,0.00024657,2]
[332116945,1720972239316,-151.0,0.00024657,7]
[332116946,1720972239325,-500.0,0.00024657,2]
[332116947,1720972239335,-500.0,0.00024657,2]
[332116948,1720972239344,-500.0,0.00024657,2]
[332116949,1720972239358,-151.0,0.00024657,7]
[332116950,1720972239367,-500.0,0.00024657,2]
[332116951,1720972239478,-500.0,0.00024657,2]
[332116952,1720972239488,-500.0,0.00024657,2]
[332116953,1720972239497,-500.0,0.00024657,2]
[332116954,1720972239507,-425.75718704,0.00024657,2]
[332116955,1720972239516,-582.25919646,0.00024657,2]
[332116956,1720972239525,-500.0,0.00024657,2]
[332116957,1720972239534,-500.0,0.00024657,2]
[332116958,1720972239544,-500.0,0.00024657,2]
[332116959,1720972239553,-500.0,0.00024657,2]
[332116960,1720972239564,-500.0,0.00024657,2]
[332116961,1720972239573,-500.0,0.00024657,2]
[332116962,1720972239583,-500.0,0.00024657,2]
[332116963,1720972239592,-500.0,0.00024657,2]
[332116964,1720972239601,-500.0,0.00024657,2]
[332116965,1720972239610,-500.0,0.00024657,2]
[332116966,1720972239620,-406.84739268,0.00024657,2]
[332116967,1720972239629,-500.0,0.00024657,2]
[332116968,1720972239638,-500.0,0.00024657,2]
[332116969,1720972239648,-171.635105,0.00024657,7]
[332116970,1720972239658,-171.635105,0.00024657,7]
[332116971,1720972239667,-500.0,0.00024657,2]
[332116972,1720972239676,-500.0,0.00024657,2]
[332116973,1720972239686,-171.635105,0.00024657,7]
[332116974,1720972239695,-171.635105,0.00024657,7]
[332116975,1720972239705,-151.0,0.00024657,7]
[332116976,1720972239714,-502.13573972,0.00024657,2]
[332116977,1720972239723,-500.0,0.00024657,2]
[332116978,1720972239733,-151.0,0.00024657,7]
[332116979,1720972239742,-151.0,0.00024657,7]
[332116980,1720972239751,-500.0,0.00024657,2]
[332116981,1720972239761,-500.0,0.00024657,2]
[332116982,1720972239770,-500.0,0.00024657,2]
[332116983,1720972239779,-500.0,0.00024657,2]
[332116985,1720972239789,-500.0,0.00024657,2]
[332116987,1720972239798,-500.0,0.00024657,2]
[332116989,1720972239807,-500.0,0.00024657,2]
[332116991,1720972239816,-500.0,0.00024657,2]
[332116993,1720972239826,-506.25715538,0.00024657,2]
[332116995,1720972239835,-500.0,0.00024657,2]
[332116996,1720972239844,-541.39600267,0.00024657,2]
[332116997,1720972239854,-500.0,0.00024657,2]
[332116998,1720972239864,-500.0,0.00024657,2]